fUST/lending_fUST_20251213
["ID","MTS","AMOUNT","RATE_DAILY","PERIOD"]
[398393728,1765591839444,-500.0,0.0001879,7]
[398393729,1765591839454,-500.0,0.0001879,7]
[398393730,1765591839463,-500.0,0.0001879,7]
[398393731,1765591839471,-500.0,0.0001879,7]
[398393732,1765591839481,-500.0,0.0001879,7]
[398393733,1765591839490,-500.0,0.0001879,7]
[398393734,1765591839499,-500.0,0.0001879,7]
[398393735,1765591839508,-500.0,0.0001879,7]
[398393736,1765591839517,-500.0,0.0001879,7]
[398393737,1765591839526,-500.0,0.0001879,7]
[398393738,1765591839537,-500.0,0.0001879,7]
[398393739,1765591839546,-500.0,0.0001879,7]
[398393740,1765591839555,-500.0,0.0001879,7]
[398393741,1765591839563,-500.0,0.0001879,7]
[398393742,1765591839572,-500.0,0.0001879,7]
[398393743,1765591839581,-500.0,0.0001879,7]
[398393744,1765591839590,-500.0,0.0001879,7]
[398393745,1765591839598,-500.0,0.0001879,7]
[398393746,1765591839607,-500.0,0.0001879,7]
[398393747,1765591839616,-500.0,0.0001879,7]
[398393748,1765591839626,-500.0,0.0001879,7]
[398393749,1765591839636,-500.0,0.0001879,7]
[398393750,1765591839657,-500.0,0.0001879,7]
[398393751,1765591839669,-500.0,0.0001879,7]
[398393752,1765591839679,-500.0,0.0001879,7]
[398393753,1765591839689,-500.0,0.0001879,7]
[398393754,1765591839698,-500.0,0.0001879,7]
[398393755,1765591839707,-500.0,0.0001879,7]
[398393756,1765591839717,-500.0,0.0001879,7]
[398393757,1765591839726,-500.0,0.0001879,7]
[398393758,1765591839735,-500.0,0.0001879,7]
[398393759,1765591839745,-500.0,0.0001879,7]
[398393760,1765591839754,-500.0,0.0001879,7]
[398393761,1765591839763,-500.0,0.0001879,7]
[398393762,1765591839772,-500.0,0.0001879,7]
[398393763,1765591839781,-500.0,0.0001879,7]
[398393764,1765591839791,-500.0,0.0001879,7]
[398393765,1765591839800,-500.0,0.0001879,7]
[398393766,1765591839809,-500.0,0.0001879,7]
[398393767,1765591839819,-500.0,0.0001879,7]
[398393768,1765591839828,-500.0,0.0001879,7]
[398393769,1765591839837,-500.0,0.0001879,7]
[398393770,1765591839847,-500.0,0.0001879,7]
[398393771,1765591839856,-500.0,0.0001879,7]
[398393772,1765591839865,-500.0,0.0001879,7]
[398393773,1765591839875,-500.0,0.0001879,7]
[398393774,1765591839885,-500.0,0.0001879,7]
[398393775,1765591839893,-500.0,0.0001879,7]
[398393776,1765591839903,-500.0,0.0001879,7]
[398393777,1765591839912,-500.0,0.0001879,7]
[398393778,1765591839921,-500.0,0.0001879,7]
[398393779,1765591839931,-500.0,0.0001879,7]
[398393780,1765591839941,-500.0,0.0001879,7]
[398393781,1765591839950,-500.0,0.0001879,7]
[398393782,1765591839960,-500.0,0.0001879,7]
[398393783,1765591839969,-500.0,0.0001879,7]
[398393784,1765591839979,-500.0,0.0001879,7]
[398393785,1765591839989,-500.0,0.0001879,7]
[398393786,1765591839999,-500.0,0.0001879,7]
[398393787,1765591840008,-500.0,0.0001879,7]
[398393788,1765591840019,-500.0,0.0001879,7]
[398393789,1765591840029,-500.0,0.0001879,7]
[398393790,1765591840039,-500.0,0.0001879,7]
[398393791,1765591840048,-500.0,0.0001879,7]
[398393792,1765591840057,-500.0,0.0001879,7]
[398393793,1765591840067,-520.58,0.0001879,7]
[398393794,1765591840076,-500.0,0.0001879,7]
[398393795,1765591840085,-500.0,0.0001879,7]
[398393796,1765591840095,-500.0,0.0001879,7]
[398393797,1765591840103,-500.0,0.0001879,7]
[398393798,1765591840112,-500.0,0.0001879,7]
[398393799,1765591840122,-500.0,0.0001879,7]
[398393800,1765591840131,-500.0,0.0001879,7]
[398393801,1765591840141,-500.0,0.0001879,7]
[398393802,1765591840150,-500.0,0.0001879,7]
[398393811,1765591840321,-500.0,0.0001879,7]
[398393812,1765591840332,-500.0,0.0001879,7]
[398393813,1765591840342,-500.0,0.0001879,7]
[398393814,1765591840352,-500.0,0.0001879,7]
[398393815,1765591840362,-500.0,0.0001879,7]
[398393816,1765591840371,-500.0,0.0001879,7]
[398393817,1765591840381,-500.0,0.0001879,7]
[398393818,1765591840391,-500.0,0.0001879,7]
[398393819,1765591840400,-500.0,0.0001879,7]
[398393820,1765591840410,-500.0,0.0001879,7]
[398393821,1765591840419,-500.0,0.0001879,7]
[398393822,1765591840428,-500.0,0.0001879,7]
[398393824,1765591840437,-515.57,0.0001879,7]
[398393827,1765591840448,-500.0,0.0001879,7]
[398393829,1765591840457,-500.0,0.00018791,7]
[398393831,1765591840466,-602.0,0.00018798,5]
[398393833,1765591840475,-1179.67507414,0.000188,5]
[398393835,1765591840484,-444.92486054,0.00018856,2]
[398393837,1765591840493,-414.60520634,0.00018856,2]
[398393839,1765591840501,-746.2893714,0.00018856,2]
[398393840,1765591840510,-1326.73666027,0.00018856,2]
[398393843,1765591840521,-150.0,0.00018864,2]
[398393845,1765591840530,-189.44594248,0.00018864,2]
[398393847,1765591840543,-475.3950848,0.0001888,2]
[398393849,1765591840552,-173.67022748,0.00018932,30]
[398393851,1765591840562,-1000.0,0.00019,2]
[398393853,1765591840571,-174.97617407,0.00019,2]
[398393855,1765591840582,-208.1082848,0.00019001,2]
[398393857,1765591840591,-500.0,0.0001915,8]
[398393859,1765591840601,-269.0,0.00019151,3]
[398393861,1765591840610,-595.37131296,0.00019174,2]
[398393863,1765591840619,-5000.0,0.00019178,2]
[398393866,1765591840629,-5000.0,0.00019178,2]
[398393868,1765591840638,-5000.0,0.00019178,2]
[398393870,1765591840647,-173.67022748,0.00019178,30]
[398393872,1765591840656,-500.0,0.00019178,2]
[398393874,1765591840665,-546.31777891,0.000192,5]
[398393876,1765591840674,-160.0,0.0001934,2]
[398393878,1765591840683,-173.67022748,0.00019425,30]
[398393880,1765591840692,-500.0,0.00019452,2]
[398393882,1765591840701,-500.0,0.00019461,9]
[398393884,1765591840710,-2070.95300565,0.00019538,2]
[398393886,1765591840719,-500.0,0.00019589,2]
[398393888,1765591840728,-413.50826086,0.00019589,2]
[398393890,1765591840737,-617.40005154,0.00019722,2]
[398393892,1765591840746,-530.0,0.00019788,5]
[398393894,1765591840755,-501.95570611,0.0001979,5]
[398393896,1765591840764,-260.0,0.00019888,2]
[398393898,1765591840773,-632.83211046,0.0001995,30]
[398393900,1765591840782,-350.09784695,0.0002,4]
[398393902,1765591840791,-1154.59,0.0002,15]
[398393904,1765591840801,-154.53625818,0.0002,2]
[398393906,1765591840810,-204.53766472,0.0002,2]
[398393908,1765591840820,-1094.0,0.0002,2]
[398393910,1765591840833,-150.0,0.0002,5]
[398393912,1765591840842,-300.0,0.0002,2]
[398393914,1765591840851,-2000.0,0.0002,7]
[398393916,1765591840862,-500.0,0.00020103,10]
[398393918,1765591840873,-5000.0,0.00020104,2]
[398393920,1765591840883,-387.64024918,0.00020143,2]
[398393922,1765591840893,-1222.813047,0.00020187,2]
[398393924,1765591840902,-1000.0,0.0002022,60]
[398393926,1765591840911,-467.9472547,0.0002027,2]
[398393928,1765591840920,-360.0,0.00020436,2]
[398393930,1765591840929,-302.1700238,0.00020548,2]
[398393932,1765591840938,-302.1700238,0.00020548,2]
[398393934,1765591840947,-302.1700238,0.00020548,2]
[398393936,1765591840956,-302.1700238,0.00020548,2]
[398393939,1765591840965,-502.497,0.00020567,2]
[398393941,1765591840975,-2000.0,0.00020588,7]
[398393943,1765591840984,-185.17106719,0.00020871,2]
[398393945,1765591840999,-460.0,0.00020984,2]
[398393947,1765591841008,-176.320088,0.00021,2]
[398393949,1765591841017,-2672.34,0.00021,3]
[398393950,1765591841027,-3669.5418091,0.00021003,2]
[398393952,1765591841036,-831.1131363,0.00021012,2]
[398393954,1765591841045,-500.0,0.00021032,11]
[398393956,1765591841055,-5000.0,0.00021033,2]
[398393958,1765591841064,-175.65372183,0.00021033,2]
[398393960,1765591841073,-2672.34,0.0002108,3]
[398393962,1765591841082,-2000.0,0.00021176,7]
[398393964,1765591841092,-1175.31,0.000212,2]
[398393966,1765591841102,-500.0,0.00021299,12]
[398393968,1765591841111,-20380.55,0.000213,2]
[398393970,1765591841120,-415.0,0.00021324,2]
[398393972,1765591841129,-162.0,0.00021368,120]
[398393974,1765591841138,-300.2569022,0.0002137,2]
[398393976,1765591841147,-500.0,0.00021379,13]
[398393978,1765591841156,-500.0,0.00021379,14]
[398393980,1765591841164,-500.0,0.00021379,15]
[398393982,1765591841173,-500.0,0.00021379,16]
[398393984,1765591841183,-500.0,0.00021379,17]
[398393986,1765591841192,-248277.95769701,0.0002138,2]
[398393988,1765591841200,-500.0,0.0002138,2]
[398393990,1765591841209,-151.323173,0.0002138,2]
[398393993,1765591841225,-151.0,0.0002138,2]
[398393995,1765591841239,-151.0,0.0002138,2]
[398393997,1765591841249,-151.772951,0.0002138,2]
[398393999,1765591841258,-183.958108,0.0002138,2]
[398394001,1765591841267,-151.0,0.0002138,2]
[398394003,1765591841276,-155.914745,0.0002138,2]
[398394005,1765591841285,-151.0,0.0002138,2]
[398394007,1765591841295,-156.68099,0.0002138,2]
[398394009,1765591841304,-165.282241,0.0002138,2]
[398394011,1765591841314,-590.911527,0.0002138,2]
[398394014,1765591841324,-590.911527,0.0002138,2]
[398394016,1765591841333,-590.911527,0.0002138,2]
[398394018,1765591841343,-590.911527,0.0002138,2]
[398394020,1765591841352,-151.0,0.0002138,2]
[398394022,1765591841361,-233.67619434,0.00021492,2]
[398394024,1765591841371,-319.00483753,0.00021515,2]
[398394026,1765591841381,-314.69541449,0.00021515,2]
[398394028,1765591841390,-560.0,0.00021532,2]
[398394030,1765591841399,-818.7854515,0.00021543,2]
[398394032,1765591841409,-185.4464072,0.00021553,2]
[398394034,1765591841418,-173.611504,0.00021563,2]
[398394036,1765591841427,-500.0,0.00021654,2]
[398394038,1765591841436,-1884.32744747,0.00021735,2]
[398394040,1765591841445,-2000.0,0.00021765,7]
[398394042,1765591841454,-1513.55502,0.00021918,2]
[398394044,1765591841463,-1513.55502,0.00021918,2]
[398394046,1765591841472,-1513.55502,0.00021918,2]
[398394048,1765591841481,-1513.55502,0.00021918,2]
[398394050,1765591841491,-150.0,0.00021918,2]
[398394052,1765591841500,-38000.0,0.00021918,3]
[398394055,1765591841510,-32013.46293733,0.00021918,3]
[398394057,1765591841519,-500.0,0.00021918,2]
[398394059,1765591841528,-500.0,0.00021918,2]
[398394061,1765591841541,-500.0,0.00021918,2]
[398394063,1765591841550,-500.0,0.00021918,2]
[398394065,1765591841559,-188.21454552,0.00021918,2]
[398394067,1765591841568,-500.0,0.00021928,5]
[398394068,1765591841577,-5000.0,0.00021961,2]
[398394069,1765591841586,-500.0,0.00021995,30]
[398394070,1765591841595,-500.0,0.00021995,30]
[398394071,1765591841605,-500.0,0.00021995,30]
[398394072,1765591841614,-500.0,0.00021995,30]
[398394073,1765591841624,-500.0,0.00021995,30]
[398394074,1765591841633,-500.0,0.00021995,30]
[398394075,1765591841643,-500.0,0.00021995,30]
[398394076,1765591841652,-500.0,0.00021995,30]
[398394077,1765591841662,-500.0,0.00021995,30]
[398394078,1765591841672,-500.0,0.00021995,30]
[398394079,1765591841681,-500.0,0.00021995,30]
[398394080,1765591841690,-500.0,0.00021995,30]
[398394081,1765591841700,-500.0,0.00021995,30]
[398394082,1765591841709,-500.0,0.00021995,30]
[398394083,1765591841718,-500.0,0.00021995,30]
[398394084,1765591841728,-500.0,0.00021995,30]
[398394085,1765591841737,-500.0,0.00021995,30]
[398394086,1765591841746,-500.0,0.00021995,30]
[398394087,1765591841755,-500.0,0.00021995,30]
[398394088,1765591841764,-500.0,0.00021995,30]
[398394089,1765591841774,-428.16912663,0.00021995,30]
[398394090,1765591841783,-26521.58,0.00022,2]
[398394091,1765591841792,-851.97379469,0.00022,20]
[398394092,1765591841802,-300.0,0.00022,30]
[398394093,1765591841811,-660.0,0.0002208,2]
[398394094,1765591841820,-500.0,0.00022202,5]
[398394095,1765591841829,-2000.0,0.00022353,7]
[398394096,1765591841838,-308.0,0.00022379,120]
[398394097,1765591841848,-171.0,0.00022435,120]
[398394098,1765591841857,-171.0,0.00022435,120]
[398394099,1765591841866,-172.0,0.00022435,120]
[398394101,1765591841876,-162.0,0.00022437,120]
[398394102,1765591841885,-300.0,0.00022466,2]
[398394103,1765591841894,-500.0,0.00022476,5]
[398394104,1765591841904,-760.0,0.00022628,2]
[398394106,1765591841912,-500.0,0.0002275,5]
[398394108,1765591841922,-151.845568,0.0002275,2]
[398394110,1765591841931,-1513.55502,0.0002275,2]
[398394112,1765591841940,-1513.55502,0.0002275,2]
[398394114,1765591841949,-1513.55502,0.0002275,2]
[398394116,1765591841958,-151.0,0.0002275,2]
[398394118,1765591841968,-1513.55502,0.0002275,2]
[398394120,1765591841978,-153.469021,0.0002275,2]
[398394122,1765591841987,-175.638289,0.0002275,2]
[398394124,1765591841996,-151.0,0.0002275,2]
[398394126,1765591842005,-151.0,0.0002275,2]
[398394128,1765591842014,-151.0,0.0002275,2]
[398394131,1765591842024,-203.189869,0.0002275,2]
[398394133,1765591842034,-590.911527,0.0002275,2]
[398394135,1765591842043,-590.911527,0.0002275,2]
[398394137,1765591842052,-590.911527,0.0002275,2]
[398394139,1765591842062,-590.911527,0.0002275,2]
[398394141,1765591842071,-151.0,0.0002275,2]
[398394143,1765591842080,-174.81983205,0.000228,2]
[398394145,1765591842088,-5000.0,0.0002289,2]
[398394147,1765591842098,-1175.31,0.000229,14]
[398394149,1765591842107,-2000.0,0.00022941,7]
[398394151,1765591842117,-176.0,0.00022986,8]
[398394153,1765591842127,-450.0,0.00023014,2]
[398394155,1765591842136,-500.0,0.00023024,5]
[398394157,1765591842145,-500.0,0.000231,7]
[398394159,1765591842154,-16726.97049365,0.000231,2]
[398394162,1765591842171,-586.89717923,0.000231,2]
[398394165,1765591842187,-2800.0,0.00019068,7]
[398394167,1765591842197,-3066.68232712,0.000231,2]
[398394169,1765591842206,-860.0,0.00023176,2]
[398394171,1765591842215,-500.0,0.00023298,5]
[398394173,1765591842224,-4000.0,0.000234,3]
[398394175,1765591842234,-308.0,0.00023498,120]
[398394178,1765591842244,-2000.0,0.00023529,7]
[398394180,1765591842253,-171.0,0.00023557,120]
[398394182,1765591842262,-171.0,0.00023557,120]
[398394184,1765591842271,-162.0,0.00023559,120]
[398394186,1765591842280,-600.0,0.00023562,2]
[398394204,1765591842433,-339.7843284,0.00023562,2]
[398394206,1765591842443,-500.0,0.00023572,5]
[398394208,1765591842452,-960.0,0.00023724,2]
[398394210,1765591842461,-26521.58,0.000238,2]
[398394212,1765591842470,-5000.0,0.00023818,2]
[398394214,1765591842479,-500.0,0.00023846,5]
[398394216,1765591842488,-400.0,0.000239,2]
[398394218,1765591842497,-400.0,0.000239,3]
[398394220,1765591842507,-300.0,0.000239,4]
[398394222,1765591842515,-22800.0,0.00024,2]
[398394224,1765591842524,-1729.93639739,0.00024,2]
[398394226,1765591842534,-464.1601665,0.00024,2]
[398394228,1765591842545,-189.2,0.00024,14]
[398394230,1765591842555,-765.72299579,0.00024108,120]
[398394232,1765591842563,-750.0,0.0002411,2]
[398394234,1765591842572,-2000.0,0.00024118,7]
[398394236,1765591842582,-500.0,0.0002412,5]
[398394238,1765591842591,-281109.67171993,0.00024142,2]
[398394239,1765591842602,-2286.42699058,0.00024142,2]
[398394240,1765591842616,-307.8364998,0.00024142,2]
[398394356,1765592054854,150.0,8.794e-05,2]
[398394357,1765592055300,150.0,9.212e-05,2]
[398394358,1765592055708,150.0,9.631e-05,2]
[398394359,1765592090462,308.55501101,9.107e-05,2]
[398394360,1765592090997,308.55501101,0.00012943,2]
[398394361,1765592105660,431.73554293,9.107e-05,2]
[398394362,1765592106767,431.73554293,0.00012943,2]
[398394363,1765592119687,150.0,7.937e-05,2]
[398394364,1765592120080,150.0,8.315e-05,2]
[398394365,1765592120513,219.02,8.693e-05,2]
[398394366,1765592120908,292.03,9.071e-05,2]
[398394367,1765592121333,365.04,9.449e-05,2]
[398394368,1765592121732,16.20362957,9.827e-05,2]
[398394369,1765592121756,421.84637043,9.827e-05,2]
[398394370,1765592122166,511.05,0.00010204,2]
[398394371,1765592122569,584.06,0.00010582,2]
[398394372,1765592122973,657.07,0.0001096,2]
[398394373,1765592123921,730.08,0.00011338,2]
[398394374,1765592195068,150.0,7.784e-05,2]
[398394375,1765592195480,150.0,8.154e-05,2]
[398394376,1765592195874,150.0,8.525e-05,2]
[398394377,1765592196300,150.0,8.896e-05,2]
[398394378,1765592196690,150.0,9.266e-05,2]
[398394379,1765592197099,150.0,9.637e-05,2]
[398394380,1765592197508,150.0,0.00010007,2]
[398394381,1765592197907,166.97,0.00010378,2]
[398394382,1765592198303,187.85,0.00010749,2]
[398394383,1765592198726,208.72,0.00011119,2]
[398394385,1765592393076,216.1452295,9.107e-05,2]
[398394386,1765592393328,216.1452295,0.00012482,2]
[398394387,1765592464620,202.52561983,0.00012563,2]
[398394389,1765592481524,324.79378799,0.00012563,2]
[398394390,1765592481554,219.63309903,9.107e-05,2]
[398394391,1765592481859,219.63309903,0.0001216,2]
[398394392,1765592484341,1100.531742,0.00013699,2]
[398394393,1765592593293,-219.63309903,0.00015212,2]
[398394394,1765592593321,-216.1452295,0.00015856,2]
[398394395,1765592593348,-650.0,0.00015856,2]
[398394396,1765592593377,-150.0,0.00016317,2]
[398394397,1765592593406,-308.55501101,0.00016778,2]
[398394398,1765592593434,-431.73554293,0.00016778,2]
[398394404,1765592829087,-225.32944559,0.00017434,2]
[398394405,1765592829109,-159.0015582,0.00017782,2]
[398394407,1765592834805,-165.79222979,0.00017782,2]
[398394408,1765592834838,-10.60159516,0.00017869,2]
[398394410,1765592854092,-139.39840484,0.00017869,2]
[398394411,1765592854112,-202.52561983,0.00017955,2]
[398394412,1765592854133,-219.63309903,0.00018265,2]
[398394413,1765592854153,-280.71753366,0.0001851,2]
[398394414,1765592857930,-856.59805748,0.0001851,2]
[398394418,1765592906303,426.44379908,9.107e-05,2]
[398394419,1765592906982,426.44379908,0.00012314,2]
[398394420,1765592964685,150.0,6.839e-05,2]
[398394421,1765592964732,150.0,7.165e-05,2]
[398394422,1765592965146,150.0,7.491e-05,2]
[398394423,1765592965722,150.0,7.817e-05,2]
[398394424,1765593030190,150.0,6.908e-05,2]
[398394425,1765593030594,150.0,7.237e-05,2]
[398394447,1765593031714,-426.44379908,0.00015521,2]
[398394448,1765593031724,-546.27620092,0.00018435,2]
[398394449,1765593031735,-220.41478978,0.00018435,2]
[398394450,1765593031744,-300.0,0.00018525,2]
[398394451,1765593031754,-202.0,0.00018525,2]
[398394452,1765593031763,-1200.0,0.00018525,2]
[398394453,1765593031773,-999.30048966,0.00018536,2]
[398394454,1765593031782,-419.3252911,0.00018536,2]
[398394455,1765593031792,-500.0,0.00018536,2]
[398394456,1765593031802,-382.23911469,0.00018536,2]
[398394457,1765593031812,-500.0,0.00018536,2]
[398394458,1765593031822,-289.75652268,0.00018536,2]
[398394459,1765593031832,-220.434,0.00018536,2]
[398394460,1765593031841,-857.01708968,0.0001861,2]
[398394461,1765593031851,-426.44379908,0.00018728,2]
[398394462,1765593031860,-5000.0,0.00019178,2]
[398394463,1765593031869,-5000.0,0.00019178,2]
[398394464,1765593031879,-500.0,0.00019178,2]
[398394465,1765593031888,-1030.4,0.000193,2]
[398394466,1765593031898,-415.0,0.00019395,2]
[398394467,1765593031907,-500.0,0.00019452,2]
[398394468,1765593031917,-1699.0,0.00019487,2]
[398394469,1765593031926,-177.87227544,0.00019487,2]
[398394470,1765593031935,-658.07423896,0.00019487,2]
[398394471,1765593031945,-500.0,0.00019487,2]
[398394472,1765593031954,-500.0,0.00019487,2]
[398394473,1765593031964,-500.0,0.00019487,2]
[398394474,1765593031973,-500.0,0.00019487,2]
[398394475,1765593031982,-500.0,0.00019487,2]
[398394476,1765593031991,-500.0,0.00019487,2]
[398394478,1765593032000,-500.0,0.00019487,2]
[398394480,1765593032011,-252.11796411,0.00019487,2]
[398394481,1765593032020,-500.0,0.00019487,2]
[398394482,1765593032030,-500.0,0.00019487,2]
[398394483,1765593032040,-500.0,0.00019487,2]
[398394484,1765593032049,-500.0,0.00019487,2]
[398394485,1765593032059,-250.0,0.00019487,2]
[398394486,1765593032069,-250.0,0.00019487,2]
[398394487,1765593032078,-250.0,0.00019487,2]
[398394488,1765593032088,-252.31672374,0.00019487,2]
[398394489,1765593032098,-250.0,0.00019487,2]
[398394490,1765593032107,-250.0,0.00019487,2]
[398394491,1765593032116,-250.0,0.00019487,2]
[398394492,1765593032126,-250.0,0.00019487,2]
[398394493,1765593032135,-250.0,0.00019487,2]
[398394494,1765593032143,-250.0,0.00019487,2]
[398394495,1765593032153,-250.0,0.00019487,2]
[398394496,1765593032162,-250.0,0.00019487,2]
[398394497,1765593032171,-239.60244157,0.00019487,2]
[398394498,1765593032181,-574.12855637,0.00019487,2]
[398394499,1765593032190,-153.04071854,0.00019726,2]
[398394500,1765593032199,-500.0,0.00019726,2]
[398394501,1765593032208,-177.0,0.00019868,2]
[398394502,1765593032217,-500.0,0.0002,2]
[398394503,1765593032226,-2243.12947097,0.0002,45]
[398394504,1765593032235,-160.0,0.0002004,2]
[398394505,1765593032244,-295.77025822,0.00020164,3]
[398394506,1765593032254,-1100.531742,0.00020187,2]
[398394507,1765593032263,-420.0,0.00020202,2]
[398394508,1765593032272,-500.0,0.00020274,2]
[398394509,1765593032281,-1680.0,0.00020301,2]
[398394510,1765593032290,-500.0,0.00020548,2]
[398394511,1765593032299,-500.0,0.00020548,2]
[398394512,1765593032308,-260.0,0.00020588,2]
[398394513,1765593032317,-500.0,0.00020822,2]
[398394514,1765593032326,-500.0,0.00020822,2]
[398394515,1765593032335,-160.0,0.00021,14]
[398394516,1765593032345,-500.0,0.00021096,2]
[398394517,1765593032354,-509.66854755,0.00021096,2]
[398394518,1765593032363,-360.0,0.00021136,2]
[398394519,1765593032372,-1029.092593,0.0002126,5]
[398394520,1765593032381,-1000.0,0.0002128,5]
[398394521,1765593032390,-1000.0,0.000213,5]
[398394522,1765593032399,-774.19919306,0.00021338,2]
[398394523,1765593032408,-500.0,0.0002137,2]
[398394524,1765593032417,-306.98147213,0.00021414,2]
[398394525,1765593032426,-5000.0,0.00021518,2]
[398394526,1765593032435,-500.0,0.00021644,2]
[398394527,1765593032444,-460.0,0.00021684,2]
[398394528,1765593032454,-397.0,0.00021737,10]
[398394529,1765593032463,-551.0,0.00021737,10]
[398394530,1765593032472,-204.0,0.00021868,2]
[398394531,1765593032482,-500.0,0.00021918,5]
[398394532,1765593032491,-150.0,0.00021918,2]
[398394533,1765593032502,-243.1349495,0.00021918,2]
[398394534,1765593032676,-3060.99999998,0.0002192,3]
[398394535,1765593032686,-426.87024288,0.00021935,2]
[398394536,1765593032696,-587.0,0.00022031,2]
[398394537,1765593032706,-500.0,0.00022192,5]
[398394538,1765593032716,-310.65151078,0.00022196,2]
[398394539,1765593032725,-384.9570714,0.00022196,2]
[398394540,1765593032735,-692.92272852,0.00022196,2]
[398394541,1765593032745,-2600.0,0.00022224,7]
[398394542,1765593032755,-560.0,0.00022232,2]
[398394543,1765593032765,-415.0,0.00022395,2]
[398394544,1765593032775,-500.0,0.00022466,5]
[398394545,1765593032784,-300.0,0.00022466,2]
[398394546,1765593032794,-355.03029803,0.00022658,2]
[398394547,1765593032803,-1231.86262848,0.00022658,2]
[398394548,1765593032813,-500.0,0.0002274,5]
[398394549,1765593032822,-660.0,0.0002278,2]
[398394550,1765593032832,-325.11858178,0.00023,2]
[398394551,1765593032842,-350.83596815,0.00023003,2]
[398394552,1765593032852,-500.0,0.00023014,5]
[398394553,1765593032861,-450.0,0.00023014,2]
[398394554,1765593032871,-500.0,0.00023288,5]
[398394555,1765593032881,-2600.0,0.0002332,7]
[398394556,1765593032891,-760.0,0.00023328,2]
[398394557,1765593032900,-202.72814545,0.00023346,2]
[398394558,1765593032910,-500.0,0.00023562,5]
[398394559,1765593032919,-268.7249486,0.00023562,2]
[398394560,1765593032928,-1881.843901,0.000236,2]
[398394561,1765593032938,-1857.68437371,0.00023608,2]
[398394562,1765593032948,-151.0,0.00023626,20]
[398394563,1765593032957,-150.0,0.00023626,20]
[398394564,1765593032967,-152.11631826,0.00023626,20]
[398394565,1765593032977,-151.0,0.00023626,20]
[398394566,1765593032987,-274.0,0.00023763,20]
[398394567,1765593032996,-238.0351726,0.00023791,5]
[398394568,1765593033006,-825.92002715,0.00023791,5]
[398394569,1765593033016,-500.0,0.00023836,5]
[398394570,1765593033026,-231.0,0.00023868,2]
[398394571,1765593033039,-860.0,0.00023876,2]
[398394572,1765593033051,-13124.43,0.0002389,10]
[398394573,1765593033060,-2744.49457556,0.000239,20]
[398394574,1765593033070,-2000.0,0.000239,20]
[398394575,1765593033080,-2000.0,0.000239,20]
[398394576,1765593033089,-2000.0,0.000239,20]
[398394577,1765593033099,-2000.0,0.000239,20]
[398394578,1765593033109,-2000.0,0.000239,20]
[398394579,1765593033118,-2000.0,0.000239,20]
[398394580,1765593033132,-2000.0,0.000239,20]
[398394581,1765593033142,-2000.0,0.000239,20]
[398394582,1765593033151,-2000.0,0.000239,20]
[398394583,1765593033161,-2000.0,0.000239,20]
[398394584,1765593033171,-234.81268386,0.000239,5]
[398394585,1765593033180,-1504.1940289,0.00023954,2]
[398394586,1765593033190,-155.0,0.00024,11]
[398394587,1765593033200,-1857.68437372,0.0002401,2]
[398394588,1765593033210,-1000.0,0.000241,2]